bitfinex/quotes_ETHUSD_20241217
["timestamp","ask_amount","ask_price","bid_price","bid_amount"]
[1734429058457,12.68560601,4018.6,4018.5,32.43383116]
[1734429058753,12.68560601,4018.6,4018.5,31.40496658]
[1734429058937,12.68560601,4018.6,4018.5,30.31280958]
[1734429059258,12.68560601,4018.6,4018.5,29.20188316]
[1734429059437,12.68560601,4018.6,4018.5,4.1556943]
[1734429059438,13.51540601,4018.6,4018.5,4.1556943]
[1734429059790,13.51540601,4018.6,4018.5,0.04550383]
[1734429060609,12.68560601,4018.6,4018.5,17.20350383]
[1734429060856,12.68560601,4018.6,4018.5,8.86195383]
[1734429061056,12.68560601,4018.6,4018.5,5.21041083]
[1734429061238,12.68560601,4018.6,4018.5,5.76041083]
[1734429062066,12.68560601,4018.6,4018.5,6.10115135]
[1734429062363,12.3667354,4018.6,4018.5,10.72465836]
[1734429062508,12.3667354,4018.6,4018.5,7.61118318]
[1734429062867,12.2092354,4018.6,4018.5,7.61118318]
[1734429063020,12.2092354,4018.6,4018.5,10.7249951]
[1734429063511,12.2092354,4018.6,4018.5,7.88743704]
[1734429063713,12.2092354,4018.6,4018.5,8.44301538]
[1734429063914,12.2092354,4018.6,4018.5,8.36101329]
[1734429064164,12.2092354,4018.6,4018.5,7.32979038]
[1734429064460,12.2092354,4018.6,4018.5,8.36101329]
[1734429064867,12.2092354,4018.6,4018.5,4.77208038]
[1734429065027,12.2092354,4018.6,4018.5,1.77208038]
[1734429065350,12.2092354,4018.6,4018.5,4.77502884]
[1734429066112,12.2092354,4018.6,4018.5,1.77502884]
[1734429066313,12.2092354,4018.6,4018.5,1.22502884]
[1734429066550,12.2092354,4018.6,4018.3,1.03122291]
[1734429066714,12.2092354,4018.6,4018.1,1.15237495]
[1734429066914,12.2092354,4018.6,4018.2,1.18021498]
[1734429067114,12.2092354,4018.6,4018.1,0.12115204]
[1734429067357,12.2092354,4018.6,4018.2,1.03122291]
[1734429067558,12.2092354,4018.6,4018.3,0.55]
[1734429067716,12.2092354,4018.6,4018.3,1.58122291]
[1734429067917,12.2092354,4018.6,4018.3,0.55]
[1734429068174,12.2092354,4018.6,4018.2,0.55]
[1734429069318,12.2092354,4018.6,4018.4,0.55]
[1734429069517,12.2092354,4018.6,4018.2,0.55]
[1734429069718,0.7699,4018.5,4018.2,0.55]
[1734429069914,0.7699,4018.5,4018.0,1.03122291]
[1734429069915,1.49314445,4018.5,4018.0,1.03122291]
[1734429070121,1.49314445,4018.5,4017.6,2.18636429]
[1734429070122,0.7699,4018.4,4017.6,1.03122291]
[1734429070419,0.7699,4018.4,4017.7,1.18215564]
[1734429070651,0.7699,4018.4,4017.5,1.03122291]
[1734429070818,0.7699,4018.4,4017.5,2.21369305]
[1734429071022,0.7699,4018.4,4017.4,1.15664551]
[1734429071221,2.31388694,4018.3,4017.3,1.03122291]
[1734429071468,0.7699,4018.2,4017.0,1.03122291]
[1734429071840,2.31388694,4017.9,4016.8,1.03122291]
[1734429072136,2.31388694,4017.9,4016.5,1.53042291]
[1734429072137,0.7699,4017.8,4016.5,1.53042291]
[1734429072385,0.7699,4017.8,4016.5,0.4492]
[1734429072683,0.7699,4017.6,4016.5,0.4492]
[1734429073350,0.7699,4017.6,4016.5,0.78265528]
[1734429073778,0.7699,4017.6,4016.6,0.33345528]
[1734429074081,0.7699,4017.6,4016.7,0.57489045]
[1734429074290,0.7699,4017.6,4016.8,0.6741958]
[1734429074465,0.7699,4017.6,4016.9,0.55]
[1734429074634,0.7699,4017.6,4017.0,0.02489182]
[1734429074835,0.7699,4017.6,4017.0,0.69908762]
[1734429075076,0.7699,4017.6,4017.1,1.2241958]
[1734429075578,0.7699,4017.6,4017.1,0.88345528]
[1734429075940,0.7699,4017.6,4017.2,0.02488973]
[1734429076133,0.7699,4017.6,4017.3,0.88345528]
[1734429076332,0.7699,4017.6,4017.5,0.55]
[1734429076535,0.7699,4017.6,4017.5,1.2241958]
[1734429076731,0.7699,4017.6,4017.5,0.88345528]
[1734429077160,0.7699,4017.6,4017.5,3.46399828]
[1734429077379,0.7699,4017.6,4017.5,0.88345528]
[1734429080398,1.2139,4018.5,4017.5,0.88345528]
[1734429080678,1.2139,4018.5,4017.7,0.55]
[1734429081898,1.2139,4018.5,4017.2,0.88345528]
[1734429081899,1.2139,4018.4,4017.2,0.88345528]
[1734429083174,1.2139,4018.4,4017.2,1.2241958]
[1734429083394,1.2139,4018.4,4017.4,0.55]
[1734429083707,1.2139,4018.4,4017.4,0.88345528]
[1734429083914,1.2139,4018.4,4017.5,0.02488579]
[1734429084189,1.2139,4018.4,4017.4,0.88345528]
[1734429084685,1.2139,4018.4,4017.5,0.358341]
[1734429085016,1.2139,4018.4,4017.6,0.55]
[1734429086696,1.2139,4018.4,4017.6,0.88345528]
[1734429086846,1.2139,4018.4,4017.6,0.55]
[1734429087043,1.2139,4018.4,4017.8,0.55]
[1734429087362,1.2139,4018.4,4017.9,0.88345528]
[1734429087543,12.2092354,4018.6,4018.1,3.55]
[1734429087747,12.2092354,4018.6,4018.3,3.55]
[1734429087967,12.2092354,4018.6,4018.5,3.55]
[1734429088263,12.2092354,4018.6,4018.5,10.25717228]
[1734429088652,12.2092354,4018.6,4018.5,10.5979128]
[1734429088850,12.2092354,4018.6,4018.5,12.92728966]
[1734429089280,12.2092354,4018.6,4018.5,11.29299957]
[1734429089486,12.2092354,4018.6,4018.5,9.10985449]
[1734429089637,12.2092354,4018.6,4018.5,5.727109]
[1734429090093,12.2092354,4018.6,4018.5,0.55]
[1734429090394,12.2092354,4018.6,4018.2,0.55]
[1734429090395,1.2139,4018.5,4018.2,0.55]
[1734429090595,1.2139,4018.5,4017.9,0.55]
[1734429091086,1.2139,4018.5,4018.0,0.34074052]
[1734429091363,1.2139,4018.5,4018.1,1.72841261]
[1734429091525,1.2139,4018.5,4018.1,0.55]
[1734429092019,12.2092354,4018.6,4018.1,0.55]
[1734429092172,12.2092354,4018.6,4018.3,0.55]
[1734429092376,12.2092354,4018.6,4018.3,0.89074052]
[1734429092576,12.2092354,4018.6,4018.5,3.55]
[1734429092905,12.2092354,4018.6,4018.5,19.98453841]
[1734429093092,12.2092354,4018.6,4018.5,19.98454404]
[1734429093288,12.2092354,4018.6,4018.5,6.7297848]
[1734429094343,12.2092354,4018.6,4018.4,1.152]
[1734429094344,12.2092354,4018.6,4018.4,0.55]
[1734429094514,13.4231354,4018.6,4018.1,0.33345528]
[1734429094674,13.4231354,4018.6,4018.0,0.34074052]
[1734429095015,13.4231354,4018.6,4018.1,0.33345528]
[1734429095243,13.4231354,4018.6,4018.1,0.6741958]
[1734429095594,13.4231354,4018.6,4018.3,0.122682]
[1734429096019,13.4231354,4018.6,4018.4,0.55]
[1734429096596,13.4231354,4018.6,4017.8,1.03122291]
[1734429096939,13.4231354,4018.6,4017.5,1.30117911]
[1734429097143,13.4231354,4018.6,4017.6,1.17911482]
[1734429097344,13.4231354,4018.6,4017.7,1.17911482]
[1734429097524,13.4231354,4018.6,4017.5,1.30117911]
[1734429097747,13.4231354,4018.6,4017.6,1.17911892]
[1734429097941,13.4231354,4018.6,4018.0,0.55]
[1734429098144,13.4231354,4018.6,4018.2,0.55]
[1734429098652,13.4231354,4018.6,4018.4,0.55]
[1734429099054,13.4231354,4018.6,4018.2,1.58122291]
[1734429099354,12.2092354,4018.6,4018.4,0.55]
[1734429099523,12.2092354,4018.6,4018.5,8.9117137]
[1734429100112,11.48865161,4018.6,4018.5,8.9117137]
[1734429100317,11.48865161,4018.6,4018.5,13.85540032]
[1734429101558,11.30080975,4018.6,4018.5,13.85540032]
[1734429102029,11.30080975,4018.6,4018.5,13.85548978]
[1734429102558,11.30080975,4018.6,4018.5,10.7379095]
[1734429103066,11.30080975,4018.6,4018.5,9.67246092]
[1734429103207,11.30080975,4018.6,4018.5,25.2888155]
[1734429103411,11.30080975,4018.6,4018.5,24.3662145]
[1734429104259,11.30080975,4018.6,4018.5,22.09831159]
[1734429104575,11.30080975,4018.6,4018.5,22.0982256]
[1734429104911,11.30080975,4018.6,4018.5,20.55159668]
[1734429105260,11.30080975,4018.6,4018.5,22.10228055]
[1734429105419,11.30080975,4018.6,4018.5,20.55159668]
[1734429105929,11.05610975,4018.6,4018.5,20.59710051]
[1734429106128,11.05610975,4018.6,4018.5,22.14789711]
[1734429106333,11.05610975,4018.6,4018.5,20.59710051]
[1734429106545,11.05610975,4018.6,4018.5,22.14787865]
[1734429106922,11.05610975,4018.6,4018.5,19.94658647]
[1734429107125,11.05610975,4018.6,4018.5,21.51816672]
[1734429107435,11.05610975,4018.6,4018.5,13.69093405]
[1734429107768,11.05610975,4018.6,4018.5,14.39981522]
[1734429108072,11.05610975,4018.6,4018.5,13.18249236]
[1734429108369,11.05610975,4018.6,4018.5,14.73314913]
[1734429108549,11.05610975,4018.6,4018.5,13.18249236]
[1734429108745,11.05610975,4018.6,4018.5,12.00405966]
[1734429108959,11.05610975,4018.6,4018.5,13.18243565]
[1734429110162,11.05610975,4018.6,4018.5,15.24427943]
[1734429110366,11.05610975,4018.6,4018.5,13.18243565]
[1734429110562,10.75170975,4018.6,4018.5,13.18243565]
[1734429110871,7.99126512,4018.6,4018.5,13.18243565]
[1734429111191,7.56386512,4018.6,4018.5,16.62404128]
[1734429111415,7.56386512,4018.6,4018.5,16.62381642]
[1734429111579,7.56386512,4018.6,4018.5,14.55713565]
[1734429111784,7.56386512,4018.6,4018.5,16.62381642]
[1734429112118,7.56386512,4018.6,4018.5,14.55713565]
[1734429112606,7.56386512,4018.6,4018.5,16.10702166]
[1734429112819,7.56386512,4018.6,4018.5,14.55713565]
[1734429113416,7.56386512,4018.6,4018.5,16.10719059]
[1734429113617,7.56386512,4018.6,4018.5,12.96169488]
[1734429113816,7.56386512,4018.6,4018.5,11.58699488]
[1734429113976,7.56386512,4018.6,4018.5,12.6205852]
[1734429115213,7.56386512,4018.6,4018.5,12.62045928]
[1734429115687,7.56386512,4018.6,4018.5,8.00040608]
[1734429115869,7.56386512,4018.6,4018.5,8.63657975]
[1734429117122,7.56386512,4018.6,4018.5,7.4821225]
[1734429117529,7.56386512,4018.6,4018.5,8.63749993]
[1734429117898,7.56386512,4018.6,4018.5,0.59550383]
[1734429118981,7.56386512,4018.6,4018.5,0.04550383]
[1734429119182,8.91196512,4018.6,4018.2,0.31465309]
[1734429119413,7.56386512,4018.6,4017.9,0.12197211]
[1734429119584,1.3481,4018.5,4017.9,0.12197211]
[1734429120185,1.3481,4018.5,4017.5,1.0334644]
[1734429120386,7.99154396,4018.6,4017.5,1.0334644]
[1734429120387,7.56386512,4018.6,4018.0,1.0334644]
[1734429120701,7.56386512,4018.6,4018.1,11.87635935]
[1734429120889,7.56386512,4018.6,4018.3,1.0334644]
[1734429121086,7.56386512,4018.6,4018.4,3.70109034]
[1734429121329,7.56386512,4018.6,4018.4,0.70109034]
[1734429121538,7.56386512,4018.6,4018.5,0.55]
[1734429121843,7.56386512,4018.6,4018.4,0.34573643]
[1734429122135,7.56386512,4018.6,4018.5,0.89573643]
[1734429122338,7.56386512,4018.6,4018.5,1.25109034]
[1734429122712,7.56386512,4018.6,4018.1,0.55]
[1734429123015,7.56386512,4018.6,4018.2,3.0]
[1734429123220,7.56386512,4018.6,4018.3,1.70772401]
[1734429123403,7.56386512,4018.6,4018.5,0.55]
[1734429123603,7.56386512,4018.6,4018.5,32.53536535]
[1734429124019,7.56386512,4018.6,4018.5,32.29841292]
[1734429124329,7.56386512,4018.6,4018.5,29.28527292]
[1734429124540,7.56386512,4018.6,4018.5,13.12498322]
[1734429124688,7.56386512,4018.6,4018.5,10.46251238]
[1734429125034,7.56386512,4018.6,4018.5,9.42558335]
[1734429125239,7.56386512,4018.6,4018.5,12.52002452]
[1734429125592,7.56386512,4018.6,4018.5,9.81224557]
[1734429125920,7.56386512,4018.6,4018.5,10.97088004]
[1734429126254,7.56386512,4018.6,4018.5,12.52695776]
[1734429126606,7.56386512,4018.6,4018.5,10.97088004]
[1734429127841,7.56386512,4018.6,4018.5,13.03756081]
[1734429128687,7.56386512,4018.6,4018.5,3.59875713]
[1734429128895,8.92596512,4018.6,4018.5,1.70863447]
[1734429129329,8.92596512,4018.6,4018.5,2.40972481]
[1734429129524,8.92596512,4018.6,4018.5,3.44811871]
[1734429129740,8.92596512,4018.6,4018.5,3.44834153]
[1734429129924,8.92596512,4018.6,4018.5,2.40972481]
[1734429130444,8.92596512,4018.6,4018.5,6.44834153]
[1734429130792,8.92596512,4018.6,4018.5,5.74725119]
[1734429130994,8.92596512,4018.6,4018.5,6.44834153]
[1734429131402,8.92596512,4018.6,4018.5,28.62674753]
[1734429131604,7.56386512,4018.6,4018.5,13.31808081]
[1734429131891,7.56386512,4018.6,4018.5,8.5146651]
[1734429133239,7.56386512,4018.6,4018.5,13.34581187]
[1734429133443,7.56386512,4018.6,4018.5,12.99045796]
[1734429133595,7.56386512,4018.6,4018.5,13.6915483]
[1734429133795,7.56386512,4018.6,4018.5,7.0833883]
[1734429134340,7.56386512,4018.6,4018.5,12.4879873]
[1734429134645,7.56386512,4018.6,4018.5,9.1079873]
[1734429134823,7.56386512,4018.6,4018.5,7.0833883]
[1734429135233,7.56386512,4018.6,4018.5,6.57477539]
[1734429135547,7.56386512,4018.6,4018.5,6.57475843]
[1734429135841,7.56386512,4018.6,4018.5,5.5357318]
[1734429136355,7.56386512,4018.6,4018.5,6.57475843]
[1734429137443,7.56386512,4018.6,4018.5,11.02500343]
[1734429137646,7.56386512,4018.6,4018.5,9.9859768]
[1734429137945,7.56386512,4018.6,4018.5,6.44822911]
[1734429137946,8.93166512,4018.6,4018.5,6.44822911]
[1734429138151,8.93166512,4018.6,4018.5,2.40972481]
[1734429138347,8.93166512,4018.6,4018.5,2.41122817]
[1734429138553,8.93166512,4018.6,4018.5,1.25109034]
[1734429139108,8.93166512,4018.6,4018.5,2.41105885]
[1734429139618,8.93166512,4018.6,4018.5,2.41092301]
[1734429139854,9.39713362,4018.6,4018.1,1.0385043]
[1734429140149,1.3678,4018.5,4017.9,0.36073643]
[1734429140306,1.3678,4018.5,4017.9,0.71609034]
[1734429140507,1.3678,4018.5,4018.0,0.36073643]
[1734429140713,9.39713362,4018.6,4018.0,0.36073643]
[1734429140714,1.3678,4018.3,4018.0,0.36073643]
[1734429141138,1.3678,4018.5,4018.0,0.37490309]
[1734429141345,1.3678,4018.5,4018.1,0.38410391]
[1734429141566,1.3678,4018.5,4018.2,0.37490309]
[1734429141762,1.3678,4018.5,4018.3,0.38410391]
[1734429142111,7.54559085,4018.6,4018.5,0.55]
[1734429142409,7.54559085,4018.6,4018.5,10.18644963]
[1734429142631,7.54559085,4018.6,4018.5,6.50545064]
[1734429143189,7.54559085,4018.6,4018.5,5.46812433]
[1734429143458,7.54559085,4018.6,4018.5,9.27185064]
[1734429143666,7.54559085,4018.6,4018.5,7.58852433]
[1734429143874,7.54559085,4018.6,4018.5,8.95952816]
[1734429144166,5.65748549,4018.6,4018.5,10.82532061]
[1734429144371,1.76431963,4018.6,4018.5,10.82532061]
[1734429144579,1.76431963,4018.6,4018.5,12.75797942]
[1734429144778,1.76431963,4018.6,4018.5,10.82532061]
[1734429145263,1.76431963,4018.6,4018.5,12.75797942]
[1734429146320,1.76431963,4018.6,4018.5,12.76014629]
[1734429146530,1.76431963,4018.6,4018.5,12.44063084]
[1734429146777,1.76431963,4018.6,4018.5,13.61598454]
[1734429146958,1.76431963,4018.6,4018.5,15.55081022]
[1734429147273,1.76431963,4018.6,4018.5,12.44063084]
[1734429147830,1.76431963,4018.6,4018.5,8.72259124]
[1734429148051,1.76431963,4018.6,4018.5,39.52469524]
[1734429148294,1.76431963,4018.6,4018.5,42.65058966]
[1734429148592,1.76431963,4018.6,4018.5,42.65254312]
[1734429148792,1.76431963,4018.6,4018.5,41.90391712]
[1734429149075,1.76431963,4018.6,4018.5,19.62159747]
[1734429149279,1.76431963,4018.6,4018.5,19.05373847]
[1734429149434,0.73162161,4018.6,4018.5,18.39635192]
[1734429149987,0.73162161,4018.6,4018.5,22.83249052]
[1734429150433,0.73162161,4018.6,4018.5,19.72185192]
[1734429150836,0.73162161,4018.6,4018.5,17.78696312]
[1734429151076,0.73162161,4018.6,4018.5,19.72155176]
[1734429151641,0.73162161,4018.6,4018.5,17.78696312]
[1734429151839,0.73162161,4018.6,4018.5,16.46146312]
[1734429152105,0.73162161,4018.6,4018.5,16.71270977]
[1734429152395,0.73162161,4018.6,4018.5,16.1432687]
[1734429152896,0.73162161,4018.6,4018.5,16.14279807]
[1734429153047,0.73162161,4018.6,4018.5,15.73255849]
[1734429153250,0.73162161,4018.6,4018.5,17.66611555]
[1734429155280,0.73162161,4018.6,4018.5,20.77237151]
[1734429156626,51.73547833,4018.7,4018.5,20.01336451]
[1734429156915,51.73547833,4018.7,4018.6,62.9053415]
[1734429157106,51.57237833,4018.7,4018.6,62.9053415]
[1734429157405,51.57237833,4018.7,4018.6,49.00863011]
[1734429158002,50.94647833,4018.7,4018.6,49.00863011]
[1734429158230,49.92557833,4018.7,4018.6,47.23279984]
[1734429158361,49.92557833,4018.7,4018.6,50.33964519]
[1734429158802,49.92557833,4018.7,4018.6,47.23279984]
[1734429158962,48.35387833,4018.7,4018.6,50.3401598]
[1734429159284,46.06527833,4018.7,4018.6,50.33969685]
[1734429159489,43.20267752,4018.7,4018.6,50.33969685]
[1734429159790,42.46037752,4018.7,4018.6,47.23279984]
[1734429159999,42.46037752,4018.7,4018.6,49.18038089]
[1734429160165,42.46037752,4018.7,4018.6,46.07309477]
[1734429160379,42.46037752,4018.7,4018.6,42.01018377]
[1734429163219,42.46037752,4018.7,4018.6,40.07662671]
[1734429163670,42.46037752,4018.7,4018.6,18.54806471]
[1734429163873,42.46037752,4018.7,4018.6,11.91706463]
[1734429164066,42.46037752,4018.7,4018.6,13.23151562]
[1734429164290,42.46037752,4018.7,4018.6,13.00167862]
[1734429164575,42.46037752,4018.7,4018.6,11.44722763]
[1734429164965,42.46037752,4018.7,4018.6,13.0016205]
[1734429165165,42.46037752,4018.7,4018.6,13.5516205]
[1734429165771,42.46037752,4018.7,4018.6,10.71637374]
[1734429165973,42.46037752,4018.7,4018.6,10.47637374]
[1734429166202,42.46037752,4018.7,4018.6,10.19303974]
[1734429166368,42.46037752,4018.7,4018.6,10.19307732]
[1734429166768,42.46037752,4018.7,4018.6,9.15658663]
[1734429168513,42.46037752,4018.7,4018.6,12.33621344]
[1734429168712,42.46037752,4018.7,4018.6,14.23181924]
[1734429168870,42.46037752,4018.7,4018.6,9.39599024]
[1734429169064,39.97559953,4018.7,4018.6,58.00038444]
[1734429169406,39.97559953,4018.7,4018.6,59.89599024]
[1734429169579,33.06585577,4018.7,4018.6,58.54999024]
[1734429169780,15.22981153,4018.7,4018.6,58.54999024]
[1734429170103,4.05183354,4018.7,4018.6,58.54999024]
[1734429170418,1.56704493,4018.7,4018.6,58.54999024]
[1734429170628,57.03398448,4018.8,4018.7,3.0]
[1734429170952,48.34092403,4018.8,4018.7,59.42994445]
[1734429171243,48.34092403,4018.8,4018.7,58.58101545]
[1734429171402,48.34092403,4018.8,4018.7,49.82049965]
[1734429171605,48.34092403,4018.8,4018.7,32.2089726]
[1734429171791,48.34092403,4018.8,4018.7,32.44281657]
[1734429172140,48.34092403,4018.8,4018.7,30.37118291]
[1734429172285,48.34092403,4018.8,4018.7,15.55686077]
[1734429172485,48.34092403,4018.8,4018.7,12.48537384]
[1734429173108,48.34092403,4018.8,4018.7,13.52165371]
[1734429173608,48.34092403,4018.8,4018.7,14.07165371]
[1734429175724,48.34092403,4018.8,4018.7,12.22616356]
[1734429176958,48.34092403,4018.8,4018.7,14.07181812]
[1734429177453,48.34092403,4018.8,4018.7,13.03537384]
[1734429178080,48.34092403,4018.8,4018.7,14.07172581]
[1734429178247,48.34092403,4018.8,4018.7,13.84980794]
[1734429178572,48.34092403,4018.8,4018.7,12.41599995]
[1734429179576,48.34092403,4018.8,4018.7,11.7972444]
[1734429179778,48.34092403,4018.8,4018.7,13.22473582]
[1734429179978,48.34092403,4018.8,4018.7,12.70767782]
[1734429180132,49.63002403,4018.8,4018.7,9.70767782]
[1734429180335,49.63002403,4018.8,4018.7,0.85471184]
[1734429181450,49.63002403,4018.8,4018.7,1.40471184]
[1734429181650,49.63002403,4018.8,4018.7,4.40471184]
[1734429181915,49.63002403,4018.8,4018.7,1.40471184]
[1734429182046,49.63002403,4018.8,4018.7,8.44467184]
[1734429183809,49.63002403,4018.8,4018.7,7.18174884]
[1734429183952,49.63002403,4018.8,4018.7,1.40471184]
[1734429184506,49.63002403,4018.8,4018.7,0.85471184]
[1734429184687,49.63002403,4018.8,4018.7,1.35921028]
[1734429185253,49.63002403,4018.8,4018.7,0.80921028]
[1734429185685,49.63002403,4018.8,4018.7,0.41743484]
[1734429186997,50.62275208,4018.8,4018.7,0.41743484]
[1734429187501,1.3378,4018.7,4018.3,0.39177544]
[1734429187685,1.3378,4018.7,4018.4,0.41743484]
[1734429190978,1.3378,4018.7,4018.0,0.41743484]
[1734429191577,1.3378,4018.5,4018.0,0.41743484]
[1734429191780,1.49477133,4018.4,4018.0,0.41743484]
[1734429193244,1.49477133,4018.4,4017.6,0.39177544]
[1734429193407,1.3378,4018.4,4017.7,0.41743484]
[1734429193611,1.3378,4018.4,4017.9,0.55]
[1734429193795,1.3378,4018.4,4018.0,0.80921028]
[1734429193995,48.34092403,4018.8,4018.1,18.188899]
[1734429194193,48.34092403,4018.8,4018.2,0.80921028]
[1734429194397,48.34092403,4018.8,4018.3,0.55]
[1734429194626,48.34092403,4018.8,4018.5,0.55]
[1734429194823,48.34092403,4018.8,4018.6,0.80921028]
[1734429195198,48.34092403,4018.8,4018.7,0.55]
[1734429195402,48.34092403,4018.8,4018.7,8.58727428]
[1734429195655,48.34092403,4018.8,4018.7,6.03627128]
[1734429195843,48.34092403,4018.8,4018.7,9.03627128]
[1734429196135,48.34092403,4018.8,4018.7,4.35921028]
[1734429196346,48.34092403,4018.8,4018.7,1.35921028]
[1734429196564,48.34092403,4018.8,4018.7,9.42627128]
[1734429196699,48.34092403,4018.8,4018.7,12.14693128]
[1734429197425,48.34092403,4018.8,4018.7,1.35921028]
[1734429199049,48.34092403,4018.8,4018.7,0.80921028]
[1734429199406,48.34092403,4018.8,4018.7,0.41743484]
[1734429200299,50.89706324,4018.8,4018.7,0.41743484]
[1734429200503,1.2981,4018.7,4018.0,0.41743484]
[1734429201198,1.2981,4018.6,4018.0,0.80921028]
[1734429201605,1.2981,4018.6,4018.0,0.41743484]
[1734429201922,1.2981,4018.4,4018.0,0.41743484]
[1734429203215,1.2981,4018.4,4018.1,0.39177544]
[1734429203470,1.2981,4018.4,4018.2,0.41743484]
[1734429203673,1.2981,4018.4,4018.2,0.80921028]
[1734429203971,1.2981,4018.4,4018.3,0.39177544]
[1734429204119,1.2981,4018.4,4018.3,0.80921028]
[1734429205122,1.2981,4018.4,4018.3,0.41743484]
[1734429205632,0.89,4018.6,4018.3,0.39177544]
[1734429205851,0.89,4018.6,4018.4,0.41743484]
[1734429206058,0.89,4018.6,4018.5,0.39177544]
[1734429206367,0.89,4018.6,4018.5,0.80921028]
[1734429207240,2.1881,4018.7,4018.5,0.80921028]
[1734429207434,2.1881,4018.7,4018.6,0.41743484]
[1734429207769,2.1881,4018.7,4018.6,0.80921028]
[1734429208219,0.89,4018.7,4018.6,1.35921028]
[1734429209926,0.89,4018.7,4018.6,0.96743484]
[1734429210131,48.34092403,4018.8,4018.6,0.80921028]
[1734429210380,48.34092403,4018.8,4018.7,0.80921028]
[1734429212441,48.34092403,4018.8,4018.7,0.41743484]
[1734429214286,1.2981,4018.7,4017.9,0.41743484]
[1734429214490,1.2981,4018.7,4018.0,0.39177544]
[1734429214692,1.2981,4018.7,4018.1,0.41743484]
[1734429214889,1.2981,4018.7,4018.2,0.39177544]
[1734429215072,1.2981,4018.7,4018.3,0.41743484]
[1734429215396,1.2981,4018.7,4018.4,0.39177544]
[1734429215547,1.2981,4018.7,4018.5,0.41743484]
[1734429216253,1.2981,4018.7,4018.5,0.80921028]
[1734429216457,1.2981,4018.7,4018.6,0.39177544]
[1734429216659,1.2981,4018.7,4018.6,0.80921028]
[1734429217269,1.53048717,4018.7,4018.6,0.80921028]
[1734429218423,1.2981,4018.7,4018.6,0.80921028]
[1734429218572,1.53048487,4018.7,4018.6,0.80921028]
[1734429218772,1.53048484,4018.7,4018.6,0.80921028]
[1734429218975,1.2981,4018.7,4018.6,0.80921028]
[1734429219216,1.53048412,4018.7,4017.8,0.55]
[1734429219518,1.2981,4018.7,4018.2,0.39177544]
[1734429220072,1.2981,4018.7,4018.2,0.78254361]
[1734429220605,0.23238644,4018.6,4018.2,0.78254361]
[1734429220789,1.2981,4018.7,4018.2,0.78254361]
[1734429220989,1.53048455,4018.6,4018.2,0.78254361]
[1734429221171,1.2981,4018.6,4018.2,0.78254361]
[1734429222320,1.2981,4018.6,4018.3,0.39076817]
[1734429222483,1.2981,4018.6,4018.4,0.39177544]
[1734429222671,1.2981,4018.6,4018.4,0.78254361]
[1734429225277,48.34092403,4018.8,4018.4,0.78254361]
[1734429225503,48.34092403,4018.8,4018.5,0.39076817]
[1734429225673,48.34092403,4018.8,4018.4,0.39177544]
[1734429226183,0.23243079,4018.7,4018.4,0.39177544]
[1734429226402,48.34092403,4018.8,4018.4,0.39177544]
[1734429226717,0.2324684,4018.7,4018.4,0.39177544]
[1734429226918,48.34092403,4018.8,4018.4,0.39177544]
[1734429227156,0.23246855,4018.7,4018.4,0.39177544]
[1734429227302,48.34092403,4018.8,4018.4,0.39177544]
[1734429227494,0.23250877,4018.7,4018.4,0.39177544]
[1734429227695,0.23251158,4018.6,4018.4,0.39177544]
[1734429227899,48.34092403,4018.8,4018.4,0.39177544]
[1734429228838,0.23255106,4018.7,4018.4,0.39177544]
[1734429229148,48.34092403,4018.8,4018.1,0.55]
[1734429229350,0.23255645,4018.6,4018.1,0.55]
[1734429229651,48.34092403,4018.8,4018.0,0.39177544]
[1734429229945,1.79548334,4018.7,4018.1,0.39177544]
[1734429230250,0.23258334,4018.6,4018.1,0.39177544]
[1734429230546,1.5629,4018.7,4018.1,0.39177544]
[1734429230703,0.23259067,4018.6,4018.1,0.39177544]
[1734429230906,1.5629,4018.7,4018.1,0.39177544]
[1734429231118,0.23259323,4018.6,4018.1,0.39177544]
[1734429231420,0.23259323,4018.5,4017.7,4.03571598]
[1734429231612,1.79549323,4018.4,4017.8,0.39177544]
[1734429231830,1.5629,4018.4,4017.8,0.39177544]
[1734429232422,1.5629,4018.4,4017.8,1.42749142]
[1734429232622,1.5629,4018.4,4017.9,0.39177544]
[1734429234684,48.34092403,4018.8,4018.0,2.62631598]
[1734429234838,0.23258836,4018.7,4018.1,0.39177544]
[1734429235040,48.34092403,4018.8,4018.1,0.39177544]
[1734429235374,0.23259418,4018.7,4018.2,1.5906]
[1734429235568,48.34092403,4018.8,4018.0,3.0]
[1734429235569,48.34092403,4018.8,4018.3,0.39177544]
[1734429235887,0.23259228,4018.7,4018.3,0.39177544]
[1734429236079,49.40955269,4018.8,4018.3,0.39177544]
[1734429236375,0.23259822,4018.7,4018.3,0.39177544]
[1734429236581,49.40955269,4018.8,4018.3,0.39177544]
[1734429236582,48.34092403,4018.8,4018.3,0.39177544]
[1734429236742,0.23259015,4018.7,4018.3,0.39177544]
[1734429237070,48.34092403,4018.8,4018.0,3.0]
[1734429237258,0.23259316,4018.7,4018.0,3.0]
[1734429237580,48.34092403,4018.8,4018.0,3.0]
[1734429237875,0.23259622,4018.7,4018.0,3.0]
[1734429238079,48.34092403,4018.8,4018.1,0.39177544]
[1734429238222,0.232608,4018.7,4018.1,0.39177544]
[1734429238420,48.34092403,4018.8,4018.1,0.39177544]
[1734429238656,0.23261228,4018.7,4018.1,0.39177544]
[1734429238875,48.34092403,4018.8,4018.1,0.39177544]
[1734429239076,0.23261231,4018.7,4018.3,5.1406]
[1734429239374,48.34092403,4018.8,4018.7,2.1406]
[1734429239524,48.34092403,4018.8,4018.7,20.05080522]
[1734429239723,48.34092403,4018.8,4018.7,14.51529836]
[1734429240669,48.34092403,4018.8,4018.7,15.988818]
[1734429241393,48.34092403,4018.8,4018.7,9.01076394]
[1734429241530,48.34092403,4018.8,4018.7,5.97918736]
[1734429241931,48.34092403,4018.8,4018.7,9.01040398]
[1734429242126,48.34092403,4018.8,4018.7,5.97918736]
[1734429244383,48.34092403,4018.8,4018.6,4.03820454]
[1734429244575,48.34092403,4018.8,4018.4,2.52180454]
[1734429244877,48.34092403,4018.8,4018.5,0.55]
[1734429245176,48.34092403,4018.8,4018.6,1.58820454]
[1734429245392,48.34092403,4018.8,4018.7,4.313977]
[1734429245548,48.34092403,4018.8,4018.7,7.72076568]
[1734429245757,48.34092403,4018.8,4018.7,8.06770779]
[1734429246152,48.34092403,4018.8,4018.7,11.06770779]
[1734429248352,48.34092403,4018.8,4018.7,9.85233849]
[1734429248760,48.34092403,4018.8,4018.7,11.69075013]
[1734429250158,48.34092403,4018.8,4018.7,9.85233849]
[1734429250365,48.34092403,4018.8,4018.7,11.68904759]
[1734429250599,48.34092403,4018.8,4018.7,9.85233849]
[1734429250991,48.34092403,4018.8,4018.7,12.4407614]
[1734429251199,48.34092403,4018.8,4018.7,9.85233849]
[1734429251700,48.34092403,4018.8,4018.7,12.1427729]